[Event "FIDE Grand Swiss 2023"]
[Site "Villa Marina, Douglas, Isle of Man"]
[Date "2023.10.29"]
[Round "5.39"]
[White "Petrosyan, Manuel"]
[Black "Sargissian, Gabriel"]
[Result "1/2-1/2"]
[WhiteElo "2604"]
[BlackElo "2686"]
[EventDate "2023.10.25"]
[ECO "C89"]
[PlyCount "67"]
[BlackFideId "13300881"]
[TimeControl "40/100 + 20/50 + 15 + 30s/move"]
[WhiteFideId "13300857"]

1.e4 {[%clk 01:40:16] [%emt 00:00:43]} 1...e5 {[%clk 01:40:55] [%emt 00:00:06]} 
2.Nf3 {[%clk 01:40:39] [%emt 00:00:06]} 2...Nc6 {[%clk 01:41:18] [%emt
00:00:07]} 3.Bb5 {[%clk 01:40:54] [%emt 00:00:14]} 3...a6 {[%clk 01:41:22] [%emt
00:00:26]} 4.Ba4 {[%clk 01:41:01] [%emt 00:00:24]} 4...Nf6 {[%clk 01:41:33]
[%emt 00:00:19]} 5.O-O {[%clk 01:41:00] [%emt 00:00:31]} 5...Be7 {[%clk
01:41:34] [%emt 00:00:29]} 6.Re1 {[%clk 01:40:35] [%emt 00:00:54]} 6...b5 
{[%clk 01:41:58] [%emt 00:00:07]} 7.Bb3 {[%clk 01:41:00] [%emt 00:00:05]} 
7...O-O {[%clk 01:42:18] [%emt 00:00:10]} 8.c3 {[%clk 01:40:11] [%emt 00:01:19]} 
8...d5 {[%clk 01:42:35] [%emt 00:00:13]} 9.exd5 {[%clk 01:40:22] [%emt
00:00:19]} 9...Nxd5 {[%clk 01:42:58] [%emt 00:00:06]} 10.Nxe5 {[%clk 01:40:23]
[%emt 00:00:29]} 10...Nxe5 {[%clk 01:43:18] [%emt 00:00:11]} 11.Rxe5 {[%clk
01:40:49] [%emt 00:00:04]} 11...c6 {[%clk 01:43:39] [%emt 00:00:09]} 12.d3 
{[%clk 01:40:47] [%emt 00:00:32]} 12...Bd6 {[%clk 01:43:43] [%emt 00:00:26]} 
13.Re1 {[%clk 01:39:26] [%emt 00:01:51]} 13...Bf5 {[%clk 01:41:30] [%emt
00:02:42]} 14.Qf3 {[%clk 01:38:58] [%emt 00:00:58]} 14...Qh4 {[%clk 01:40:58]
[%emt 00:01:02]} 15.g3 {[%clk 01:39:14] [%emt 00:00:15]} 15...Qh3 {[%clk
01:41:00] [%emt 00:00:28]} 16.Nd2 {[%clk 01:39:11] [%emt 00:00:32]} 16...Rae8 
{[%clk 01:40:21] [%emt 00:01:10]} 17.Ne4 {[%clk 01:39:09] [%emt 00:00:32]} 
17...Bg4 {[%clk 01:40:43] [%emt 00:00:08]} 18.Qg2 {[%clk 01:39:31] [%emt
00:00:08]} 18...Qxg2+ {[%clk 01:40:49] [%emt 00:00:24]} 19.Kxg2 {[%clk 01:39:53]
[%emt 00:00:09]} 19...f5 {[%clk 01:40:57] [%emt 00:00:21]} 20.Bf4 {[%clk
01:39:08] [%emt 00:01:15]} 20...Bxf4 {[%clk 01:41:13] [%emt 00:00:14]} 21.gxf4 
{[%clk 01:39:31] [%emt 00:00:06]} 21...fxe4 {[%clk 01:41:10] [%emt 00:00:34]} 
22.dxe4 {[%clk 01:39:50] [%emt 00:00:11]} 22...Bf3+ {[%clk 01:41:17] [%emt
00:00:22]} 23.Kxf3 {[%clk 01:40:02] [%emt 00:00:18]} 23...Rxf4+ {[%clk 01:41:41]
[%emt 00:00:07]} 24.Kg3 {[%clk 01:40:19] [%emt 00:00:13]} 24...Rfxe4 {[%clk
01:42:03] [%emt 00:00:08]} 25.Rxe4 {[%clk 01:40:26] [%emt 00:00:23]} 25...Rxe4 
{[%clk 01:42:27] [%emt 00:00:05]} 26.f3 {[%clk 01:40:47] [%emt 00:00:09]} 
26...Re5 {[%clk 01:42:05] [%emt 00:00:53]} 27.c4 {[%clk 01:40:56] [%emt
00:00:21]} 27...bxc4 {[%clk 01:40:58] [%emt 00:01:37]} 28.Bxc4 {[%clk 01:41:20]
[%emt 00:00:07]} 28...a5 {[%clk 01:38:44] [%emt 00:02:43]} 29.Rc1 {[%clk
01:38:28] [%emt 00:03:21]} 29...Rg5+ {[%clk 01:36:55] [%emt 00:02:19]} 30.Kf2 
{[%clk 01:37:46] [%emt 00:01:12]} 30...Kf8 {[%clk 01:36:39] [%emt 00:00:46]} 
31.Bd3 {[%clk 01:34:45] [%emt 00:03:31]} 31...Rh5 {[%clk 01:35:22] [%emt
00:01:48]} 32.Kg3 {[%clk 01:32:38] [%emt 00:02:36]} 32...Rg5+ {[%clk 01:34:56]
[%emt 00:00:56]} 33.Kf2 {[%clk 01:32:52] [%emt 00:00:16]} 33...Rh5 {[%clk
01:35:18] [%emt 00:00:08]} 34.Kg3 {[%clk 01:33:17] [%emt 00:00:06]} 1/2-1/2

[Event "FIDE Grand Swiss 2023"]
[Site "Villa Marina, Douglas, Isle of Man"]
[Date "2023.10.29"]
[Round "5.40"]
[White "Amin, Bassem"]
[Black "Gupta, Abhijeet"]
[Result "1/2-1/2"]
[WhiteElo "2680"]
[BlackElo "2609"]
[EventDate "2023.10.25"]
[ECO "A05"]
[PlyCount "64"]
[BlackFideId "5010608"]
[TimeControl "40/100 + 20/50 + 15 + 30s/move"]
[WhiteFideId "10601457"]

1.Nf3 {[%clk 01:40:21] [%emt 00:00:38]} 1...Nf6 {[%clk 01:40:49] [%emt
00:00:13]} 2.g3 {[%clk 01:40:39] [%emt 00:00:12]} 2...g6 {[%clk 01:40:58] [%emt
00:00:20]} 3.b3 {[%clk 01:39:53] [%emt 00:01:17]} 3...Bg7 {[%clk 01:39:42] [%emt
00:01:45]} 4.Bb2 {[%clk 01:40:15] [%emt 00:00:08]} 4...d6 {[%clk 01:39:38] [%emt
00:00:35]} 5.d4 {[%clk 01:40:10] [%emt 00:00:34]} 5...c5 {[%clk 01:36:26] [%emt
00:03:43]} 6.Bg2 {[%clk 01:37:16] [%emt 00:03:24]} 6...cxd4 {[%clk 01:35:56]
[%emt 00:01:00]} 7.Nxd4 {[%clk 01:37:39] [%emt 00:00:06]} 7...d5 {[%clk
01:36:16] [%emt 00:00:11]} 8.O-O {[%clk 01:37:49] [%emt 00:00:19]} 8...O-O 
{[%clk 01:34:50] [%emt 00:01:56]} 9.c4 {[%clk 01:36:00] [%emt 00:02:19]} 9...e5 
{[%clk 01:34:15] [%emt 00:01:06]} 10.Nf3 {[%clk 01:30:27] [%emt 00:06:03]} 
10...e4 {[%clk 01:34:24] [%emt 00:00:21]} 11.Nd4 {[%clk 01:30:46] [%emt
00:00:10]} 11...dxc4 {[%clk 01:34:26] [%emt 00:00:29]} 12.Nd2 {[%clk 01:23:44]
[%emt 00:07:31]} 12...cxb3 {[%clk 01:22:57] [%emt 00:12:00]} 13.Qxb3 {[%clk
01:23:56] [%emt 00:00:17]} 13...Na6 {[%clk 01:15:32] [%emt 00:07:55]} 14.Rac1 
{[%clk 01:21:11] [%emt 00:03:15]} 14...Qa5 {[%clk 01:00:24] [%emt 00:15:39]} 
15.Nxe4 {[%clk 01:03:58] [%emt 00:17:43]} 15...Nxe4 {[%clk 01:00:02] [%emt
00:00:52]} 16.Bxe4 {[%clk 01:04:18] [%emt 00:00:09]} 16...Nc5 {[%clk 00:57:04]
[%emt 00:03:28]} 17.Qd5 {[%clk 01:04:30] [%emt 00:00:18]} 17...Rd8 {[%clk
00:55:57] [%emt 00:01:38]} 18.Qxc5 {[%clk 01:03:05] [%emt 00:01:55]} 18...Qxc5 
{[%clk 00:56:22] [%emt 00:00:05]} 19.Rxc5 {[%clk 01:03:29] [%emt 00:00:05]} 
19...Bxd4 {[%clk 00:56:47] [%emt 00:00:05]} 20.Rc2 {[%clk 00:56:36] [%emt
00:07:22]} 20...Rb8 {[%clk 00:51:49] [%emt 00:05:29]} 21.Rb1 {[%clk 00:54:48]
[%emt 00:02:19]} 21...Be6 {[%clk 00:48:52] [%emt 00:03:26]} 22.Bxd4 {[%clk
00:48:24] [%emt 00:06:55]} 22...Rxd4 {[%clk 00:49:14] [%emt 00:00:07]} 23.Rxb7 
{[%clk 00:48:14] [%emt 00:00:40]} 23...Rxb7 {[%clk 00:46:26] [%emt 00:03:18]} 
24.Bxb7 {[%clk 00:48:40] [%emt 00:00:04]} 24...Ra4 {[%clk 00:46:47] [%emt
00:00:09]} 25.e4 {[%clk 00:48:00] [%emt 00:01:11]} 25...Rxa2 {[%clk 00:44:21]
[%emt 00:02:55]} 26.Rc1 {[%clk 00:47:13] [%emt 00:01:17]} 26...Rd2 {[%clk
00:37:08] [%emt 00:07:43]} 27.Kg2 {[%clk 00:43:57] [%emt 00:03:45]} 27...a5 
{[%clk 00:36:08] [%emt 00:01:31]} 28.Rc5 {[%clk 00:44:03] [%emt 00:00:25]} 
28...a4 {[%clk 00:34:05] [%emt 00:02:33]} 29.Ra5 {[%clk 00:44:26] [%emt
00:00:07]} 29...Bb3 {[%clk 00:29:01] [%emt 00:05:33]} 30.Bd5 {[%clk 00:44:06]
[%emt 00:00:50]} 30...Kf8 {[%clk 00:27:29] [%emt 00:02:03]} 31.Ra8+ {[%clk
00:43:35] [%emt 00:01:01]} 31...Kg7 {[%clk 00:19:38] [%emt 00:08:20]} 32.Ra7 
{[%clk 00:43:42] [%emt 00:00:23]} 32...Bxd5 {[%clk 00:19:34] [%emt 00:00:35]} 1/2-1/2

[Event "FIDE Grand Swiss 2023"]
[Site "Villa Marina, Douglas, Isle of Man"]
[Date "2023.10.29"]
[Round "5.41"]
[White "Donchenko, Alexander"]
[Black "Mishra, Abhimanyu"]
[Result "0-1"]
[WhiteElo "2676"]
[BlackElo "2592"]
[EventDate "2023.10.25"]
[ECO "D02"]
[PlyCount "82"]
[BlackFideId "30920019"]
[TimeControl "40/100 + 20/50 + 15 + 30s/move"]
[WhiteFideId "24603295"]

1.d4 {[%clk 01:40:57] [%emt 00:00:02]} 1...d5 {[%clk 01:40:55] [%emt 00:00:05]} 
2.Nf3 {[%clk 01:41:20] [%emt 00:00:07]} 2...Nf6 {[%clk 01:41:11] [%emt
00:00:15]} 3.c3 {[%clk 01:41:42] [%emt 00:00:08]} 3...Bf5 {[%clk 01:39:34] [%emt
00:02:06]} 4.Qb3 {[%clk 01:41:49] [%emt 00:00:23]} 4...Qc8 {[%clk 01:39:22]
[%emt 00:00:43]} 5.c4 {[%clk 01:41:29] [%emt 00:00:49]} 5...dxc4 {[%clk
01:33:19] [%emt 00:06:33]} 6.Qxc4 {[%clk 01:41:45] [%emt 00:00:15]} 6...e6 
{[%clk 01:33:26] [%emt 00:00:23]} 7.Nc3 {[%clk 01:41:17] [%emt 00:00:57]} 
7...a6 {[%clk 01:28:27] [%emt 00:05:30]} 8.Nh4 {[%clk 01:40:51] [%emt 00:00:55]} 
8...Bc2 {[%clk 01:28:39] [%emt 00:00:18]} 9.Bf4 {[%clk 01:40:54] [%emt
00:00:26]} 9...c6 {[%clk 01:25:25] [%emt 00:03:46]} 10.e3 {[%clk 01:40:31] [%emt
00:00:53]} 10...h6 {[%clk 01:24:43] [%emt 00:01:11]} 11.Nf3 {[%clk 01:40:23]
[%emt 00:00:38]} 11...Nbd7 {[%clk 01:23:40] [%emt 00:01:33]} 12.Rc1 {[%clk
01:40:22] [%emt 00:00:30]} 12...Bg6 {[%clk 01:23:10] [%emt 00:01:00]} 13.Be2 
{[%clk 01:34:02] [%emt 00:06:50]} 13...Be7 {[%clk 01:20:09] [%emt 00:03:32]} 
14.Qb3 {[%clk 01:22:33] [%emt 00:11:59]} 14...O-O {[%clk 01:13:25] [%emt
00:07:14]} 15.O-O {[%clk 01:21:33] [%emt 00:01:29]} 15...b5 {[%clk 01:11:13]
[%emt 00:02:43]} 16.a4 {[%clk 01:14:48] [%emt 00:07:15]} 16...Qb7 {[%clk
01:06:27] [%emt 00:05:16]} 17.h3 {[%clk 01:00:54] [%emt 00:14:25]} 17...Rfc8 
{[%clk 01:01:11] [%emt 00:05:46]} 18.Nd2 {[%clk 00:51:18] [%emt 00:10:05]} 
18...Nb6 {[%clk 00:57:07] [%emt 00:04:34]} 19.Bh2 {[%clk 00:47:29] [%emt
00:04:18]} 19...Ra7 {[%clk 00:46:12] [%emt 00:11:26]} 20.a5 {[%clk 00:35:30]
[%emt 00:12:30]} 20...Nbd5 {[%clk 00:42:34] [%emt 00:04:08]} 21.Bf3 {[%clk
00:35:14] [%emt 00:00:46]} 21...Nxc3 {[%clk 00:36:30] [%emt 00:06:34]} 22.bxc3 
{[%clk 00:31:40] [%emt 00:04:03]} 22...Qd7 {[%clk 00:36:14] [%emt 00:00:45]} 
23.Rfd1 {[%clk 00:29:20] [%emt 00:02:51]} 23...c5 {[%clk 00:26:45] [%emt
00:09:59]} 24.dxc5 {[%clk 00:27:38] [%emt 00:02:12]} 24...Bxc5 {[%clk 00:26:47]
[%emt 00:00:28]} 25.Ne4 {[%clk 00:25:54] [%emt 00:02:14]} 25...Nxe4 {[%clk
00:25:24] [%emt 00:01:53]} 26.Rxd7 {[%clk 00:26:16]} 26...Rxd7 {[%clk 00:25:52]
[%emt 00:00:10]} 27.Be5 {[%clk 00:19:05] [%emt 00:07:41]} 27...Rd5 {[%clk
00:21:51] [%emt 00:04:31]} 28.Bd4 {[%clk 00:15:25] [%emt 00:04:10]} 28...Bxd4 
{[%clk 00:20:25] [%emt 00:01:56]} 29.exd4 {[%clk 00:14:14] [%emt 00:01:41]} 
29...Rxd4 {[%clk 00:17:35] [%emt 00:03:19]} 30.cxd4 {[%clk 00:13:56] [%emt
00:00:48]} 30...Rxc1+ {[%clk 00:17:54] [%emt 00:00:11]} 31.Kh2 {[%clk 00:14:24]
[%emt 00:00:03]} 31...Nd2 {[%clk 00:16:35] [%emt 00:01:49]} 32.Qa3 {[%clk
00:11:09] [%emt 00:03:45]} 32...Nf1+ {[%clk 00:15:21] [%emt 00:01:43]} 33.Kg1 
{[%clk 00:11:22] [%emt 00:00:17]} 33...Rb1 {[%clk 00:15:41] [%emt 00:00:11]} 
34.Qd6 {[%clk 00:09:43] [%emt 00:02:09]} 34...Nd2+ {[%clk 00:15:41] [%emt
00:00:30]} 35.Kh2 {[%clk 00:10:11] [%emt 00:00:02]} 35...Nf1+ {[%clk 00:15:57]
[%emt 00:00:14]} 36.Kg1 {[%clk 00:10:39] [%emt 00:00:02]} 36...b4 {[%clk
00:12:13] [%emt 00:04:14]} 37.d5 {[%clk 00:06:25] [%emt 00:04:44]} 37...exd5 
{[%clk 00:04:00] [%emt 00:08:43]} 38.Bxd5 {[%clk 00:06:05] [%emt 00:00:50]} 
38...Ne3+ {[%clk 00:03:43] [%emt 00:00:47]} 39.Kh2 {[%clk 00:06:34] [%emt
00:00:02]} 39...Nxd5 {[%clk 00:03:59] [%emt 00:00:13]} 40.Qxd5 {[%clk 00:06:32]
[%emt 00:00:32]} 40...b3 {[%clk 00:04:11] [%emt 00:00:18]} 41.Kg3 {[%clk
00:50:24] [%emt 00:06:37]} 41...Rd1 {[%clk 00:48:40] [%emt 00:06:02]} 0-1

[Event "FIDE Grand Swiss 2023"]
[Site "Villa Marina, Douglas, Isle of Man"]
[Date "2023.10.29"]
[Round "5.42"]
[White "Shevchenko, Kirill"]
[Black "Wagner, Dennis"]
[Result "1/2-1/2"]
[WhiteElo "2671"]
[BlackElo "2589"]
[EventDate "2023.10.25"]
[ECO "A05"]
[PlyCount "106"]
[BlackFideId "24650684"]
[TimeControl "40/100 + 20/50 + 15 + 30s/move"]
[WhiteFideId "14129574"]

1.Nf3 {[%clk 01:40:57] [%emt 00:00:02]} 1...Nf6 {[%clk 01:39:44] [%emt
00:01:17]} 2.g3 {[%clk 01:41:22] [%emt 00:00:05]} 2...g6 {[%clk 01:39:30] [%emt
00:00:44]} 3.c4 {[%clk 01:41:35] [%emt 00:00:16]} 3...Bg7 {[%clk 01:39:08] [%emt
00:00:53]} 4.Nc3 {[%clk 01:38:55] [%emt 00:03:11]} 4...c6 {[%clk 01:35:30] [%emt
00:04:08]} 5.e4 {[%clk 01:32:24] [%emt 00:07:00]} 5...d5 {[%clk 01:35:34] [%emt
00:00:25]} 6.cxd5 {[%clk 01:21:33] [%emt 00:11:22]} 6...cxd5 {[%clk 01:35:58]
[%emt 00:00:06]} 7.e5 {[%clk 01:22:00] [%emt 00:00:03]} 7...Ne4 {[%clk 01:36:02]
[%emt 00:00:25]} 8.d4 {[%clk 01:20:21] [%emt 00:02:09]} 8...Nc6 {[%clk 01:28:53]
[%emt 00:07:39]} 9.Bg2 {[%clk 01:19:45] [%emt 00:01:07]} 9...Qa5 {[%clk
01:27:05] [%emt 00:02:18]} 10.Bd2 {[%clk 01:00:51] [%emt 00:19:24]} 10...Nxd2 
{[%clk 01:27:26] [%emt 00:00:10]} 11.Qxd2 {[%clk 01:01:18] [%emt 00:00:03]} 
11...O-O {[%clk 01:01:46] [%emt 00:26:09]} 12.O-O {[%clk 00:58:40] [%emt
00:03:08]} 12...e6 {[%clk 00:57:37] [%emt 00:04:39]} 13.h4 {[%clk 00:56:57]
[%emt 00:02:12]} 13...f6 {[%clk 00:56:01] [%emt 00:02:06]} 14.exf6 {[%clk
00:53:50] [%emt 00:03:38]} 14...Bxf6 {[%clk 00:55:00] [%emt 00:01:31]} 15.a3 
{[%clk 00:42:33] [%emt 00:11:47]} 15...Qb6 {[%clk 00:48:14] [%emt 00:07:15]} 
16.Rad1 {[%clk 00:35:52] [%emt 00:07:12]} 16...Bg7 {[%clk 00:26:52] [%emt
00:21:52]} 17.Rfe1 {[%clk 00:25:12] [%emt 00:11:11]} 17...Bd7 {[%clk 00:27:17]
[%emt 00:00:05]} 18.b4 {[%clk 00:14:33] [%emt 00:11:09]} 18...Rxf3 {[%clk
00:25:45] [%emt 00:02:02]} 19.Bxf3 {[%clk 00:14:24] [%emt 00:00:38]} 19...Nxd4 
{[%clk 00:26:09] [%emt 00:00:05]} 20.Bg2 {[%clk 00:14:29] [%emt 00:00:25]} 
20...Rc8 {[%clk 00:17:27] [%emt 00:09:12]} 21.Rc1 {[%clk 00:09:30] [%emt
00:05:30]} 21...Rf8 {[%clk 00:13:23] [%emt 00:04:33]} 22.Qe3 {[%clk 00:09:33]
[%emt 00:00:28]} 22...Nb3 {[%clk 00:11:41] [%emt 00:02:12]} 23.Nxd5 {[%clk
00:09:14] [%emt 00:00:50]} 23...Qxe3 {[%clk 00:11:56] [%emt 00:00:15]} 24.Nxe3 
{[%clk 00:09:36] [%emt 00:00:08]} 24...Nxc1 {[%clk 00:12:23] [%emt 00:00:02]} 
25.Rxc1 {[%clk 00:10:05]} 25...Rc8 {[%clk 00:11:57] [%emt 00:00:55]} 26.Rxc8+ 
{[%clk 00:07:15] [%emt 00:03:21]} 26...Bxc8 {[%clk 00:12:23] [%emt 00:00:04]} 
27.Nc4 {[%clk 00:07:40] [%emt 00:00:05]} 27...b6 {[%clk 00:12:00] [%emt
00:00:53]} 28.Bc6 {[%clk 00:07:39] [%emt 00:00:31]} 28...e5 {[%clk 00:09:15]
[%emt 00:03:15]} 29.Nd6 {[%clk 00:06:51] [%emt 00:01:18]} 29...Be6 {[%clk
00:09:16] [%emt 00:00:29]} 30.Nb5 {[%clk 00:05:51] [%emt 00:01:30]} 30...a5 
{[%clk 00:06:07] [%emt 00:03:38]} 31.Nc7 {[%clk 00:06:11] [%emt 00:00:10]} 
31...Bf5 {[%clk 00:02:54] [%emt 00:03:43]} 32.Bd5+ {[%clk 00:04:35] [%emt
00:02:07]} 32...Kh8 {[%clk 00:03:19] [%emt 00:00:05]} 33.Bc4 {[%clk 00:02:27]
[%emt 00:02:39]} 33...axb4 {[%clk 00:03:40] [%emt 00:00:08]} 34.axb4 {[%clk
00:02:56]} 34...Bf8 {[%clk 00:03:47] [%emt 00:00:23]} 35.Nd5 {[%clk 00:03:21]
[%emt 00:00:05]} 35...Be4 {[%clk 00:03:16] [%emt 00:01:01]} 36.Nxb6 {[%clk
00:02:46] [%emt 00:01:05]} 36...Bxb4 {[%clk 00:03:42] [%emt 00:00:05]} 37.Nd7 
{[%clk 00:03:13] [%emt 00:00:03]} 37...Bc3 {[%clk 00:03:34] [%emt 00:00:37]} 
38.Nf6 {[%clk 00:03:19] [%emt 00:00:24]} 38...Bc6 {[%clk 00:03:44] [%emt
00:00:20]} 39.Bd5 {[%clk 00:03:33] [%emt 00:00:16]} 39...Kg7 {[%clk 00:01:36]
[%emt 00:02:37]} 40.Nh5+ {[%clk 00:03:32] [%emt 00:00:32]} 40...gxh5 {[%clk
00:01:47] [%emt 00:00:19]} 41.Bxc6 {[%clk 00:03:58] [%emt 00:00:03]} 41...Bd4 
{[%clk 00:01:55] [%emt 00:00:23]} 42.Kg2 {[%clk 00:04:24] [%emt 00:00:04]} 
42...Kf6 {[%clk 00:49:40] [%emt 00:02:44]} 43.Be8 {[%clk 00:54:18] [%emt
00:00:37]} 43...h6 {[%clk 00:50:06] [%emt 00:00:04]} 44.Bxh5 {[%clk 00:54:44]
[%emt 00:00:05]} 44...Bc5 {[%clk 00:50:29] [%emt 00:00:06]} 45.Kf3 {[%clk
00:55:10] [%emt 00:00:04]} 45...Bd4 {[%clk 00:50:54] [%emt 00:00:04]} 46.Be8 
{[%clk 00:55:32] [%emt 00:00:09]} 46...Bc5 {[%clk 00:51:19] [%emt 00:00:05]} 
47.Bc6 {[%clk 00:55:52] [%emt 00:00:09]} 47...Bd4 {[%clk 00:51:45] [%emt
00:00:04]} 48.Kg2 {[%clk 00:56:19] [%emt 00:00:04]} 48...Bc5 {[%clk 00:52:11]
[%emt 00:00:04]} 49.Be4 {[%clk 00:56:45] [%emt 00:00:04]} 49...Bd4 {[%clk
00:52:37] [%emt 00:00:04]} 50.f3 {[%clk 00:57:13] [%emt 00:00:02]} 50...Bc5 
{[%clk 00:53:02] [%emt 00:00:05]} 51.Kh3 {[%clk 00:57:39] [%emt 00:00:04]} 
51...Bd4 {[%clk 00:53:24] [%emt 00:00:07]} 52.Kg4 {[%clk 00:58:05] [%emt
00:00:04]} 52...Bf2 {[%clk 00:53:47] [%emt 00:00:07]} 53.Bd3 {[%clk 00:58:30]
[%emt 00:00:06]} 53...Be1 {[%clk 00:54:04] [%emt 00:00:13]} 1/2-1/2

[Event "FIDE Grand Swiss 2023"]
[Site "Villa Marina, Douglas, Isle of Man"]
[Date "2023.10.29"]
[Round "5.43"]
[White "Akobian, Varuzhan"]
[Black "Mamedov, Rauf"]
[Result "1/2-1/2"]
[WhiteElo "2582"]
[BlackElo "2640"]
[EventDate "2023.10.25"]
[ECO "D35"]
[PlyCount "60"]
[BlackFideId "13401653"]
[TimeControl "40/100 + 20/50 + 15 + 30s/move"]
[WhiteFideId "13300580"]

1.d4 {[%clk 01:40:55] [%emt 00:00:03]} 1...d5 {[%clk 01:40:49] [%emt 00:00:12]} 
2.c4 {[%clk 01:40:50] [%emt 00:00:34]} 2...e6 {[%clk 01:41:16] [%emt 00:00:05]} 
3.Nc3 {[%clk 01:39:16] [%emt 00:02:03]} 3...Nf6 {[%clk 01:41:27] [%emt
00:00:19]} 4.cxd5 {[%clk 01:39:25] [%emt 00:00:20]} 4...exd5 {[%clk 01:41:52]
[%emt 00:00:05]} 5.Bg5 {[%clk 01:39:46] [%emt 00:00:09]} 5...Bb4 {[%clk
01:42:18] [%emt 00:00:05]} 6.e3 {[%clk 01:37:14] [%emt 00:03:01]} 6...h6 {[%clk
01:40:57] [%emt 00:01:52]} 7.Bxf6 {[%clk 01:34:23] [%emt 00:03:20]} 7...Qxf6 
{[%clk 01:40:32] [%emt 00:00:56]} 8.Qa4+ {[%clk 01:34:45] [%emt 00:00:08]} 
8...Nc6 {[%clk 01:40:58] [%emt 00:00:04]} 9.Nf3 {[%clk 01:35:10] [%emt
00:00:04]} 9...O-O {[%clk 01:41:21] [%emt 00:00:07]} 10.Be2 {[%clk 01:35:21]
[%emt 00:00:19]} 10...Rd8 {[%clk 01:41:17] [%emt 00:00:34]} 11.Rc1 {[%clk
01:33:15] [%emt 00:02:36]} 11...Bf8 {[%clk 01:38:55] [%emt 00:02:53]} 12.O-O 
{[%clk 01:31:32] [%emt 00:02:12]} 12...Ne7 {[%clk 01:38:50] [%emt 00:00:37]} 
13.b4 {[%clk 01:31:39] [%emt 00:00:22]} 13...c6 {[%clk 01:39:07] [%emt
00:00:12]} 14.b5 {[%clk 01:29:54] [%emt 00:02:16]} 14...a6 {[%clk 01:36:12]
[%emt 00:03:25]} 15.bxa6 {[%clk 01:25:55] [%emt 00:04:30]} 15...Ng6 {[%clk
01:00:34] [%emt 00:36:08]} 16.Qc2 {[%clk 01:11:23] [%emt 00:15:00]} 16...Bf5 
{[%clk 00:41:31] [%emt 00:19:34]} 17.e4 {[%clk 00:47:17] [%emt 00:24:36]} 
17...dxe4 {[%clk 00:41:56] [%emt 00:00:06]} 18.Nxe4 {[%clk 00:47:40] [%emt
00:00:06]} 18...Qe6 {[%clk 00:42:20] [%emt 00:00:06]} 19.Bd3 {[%clk 00:34:20]
[%emt 00:13:50]} 19...Bxe4 {[%clk 00:37:44] [%emt 00:05:06]} 20.Bxe4 {[%clk
00:34:11] [%emt 00:00:38]} 20...Rxa6 {[%clk 00:38:10] [%emt 00:00:05]} 21.a4 
{[%clk 00:34:16] [%emt 00:00:25]} 21...Rda8 {[%clk 00:31:16] [%emt 00:07:24]} 
22.Rb1 {[%clk 00:32:44] [%emt 00:02:01]} 22...Rxa4 {[%clk 00:18:56] [%emt
00:12:51]} 23.Rxb7 {[%clk 00:30:05] [%emt 00:03:09]} 23...Ra1 {[%clk 00:17:30]
[%emt 00:01:56]} 24.Rbb1 {[%clk 00:21:25] [%emt 00:09:09]} 24...Rxb1 {[%clk
00:17:49] [%emt 00:00:11]} 25.Rxb1 {[%clk 00:21:48] [%emt 00:00:07]} 25...Ne7 
{[%clk 00:18:10] [%emt 00:00:09]} 26.Ne5 {[%clk 00:19:28] [%emt 00:02:50]} 
26...Rd8 {[%clk 00:16:23] [%emt 00:02:18]} 27.g3 {[%clk 00:15:55] [%emt
00:04:03]} 27...g6 {[%clk 00:13:33] [%emt 00:03:20]} 28.Nxc6 {[%clk 00:14:29]
[%emt 00:01:55]} 28...Nxc6 {[%clk 00:13:23] [%emt 00:00:40]} 29.Qxc6 {[%clk
00:14:32] [%emt 00:00:27]} 29...Qxc6 {[%clk 00:13:50] [%emt 00:00:04]} 30.Bxc6 
{[%clk 00:14:51] [%emt 00:00:10]} 30...Rxd4 {[%clk 00:14:17] [%emt 00:00:03]} 1/2-1/2